[Event "NJSK 2022 Jeugd C"]
[Site "Almelo, Netherlands"]
[Date "2022.05.03"]
[Round "4.6"]
[White "Ponomarev, Ivan"]
[Black "Dekker, Thiemen"]
[Result "1/2-1/2"]
[TimeControl "90min + 30sec/move"]
[WhiteElo "1744"]
[BlackElo "1935"]

1. e4 {[%clk 01:30:59]} {[%emt 01:02:41]} e5 {[%clk 01:30:55]} {[%emt
00:00:05]} 2. Nf3 {[%clk 01:31:25]} {[%emt 00:00:04]} Nc6 {[%clk 01:31:18]}
{[%emt 00:00:06]} 3. d4 {[%clk 01:31:52]} {[%emt 00:00:04]} exd4 {[%clk
01:31:42]} {[%emt 00:00:06]} 4. Nxd4 {[%clk 01:32:19]} {[%emt 00:00:03]} Nf6
{[%clk 01:32:02]} {[%emt 00:00:10]} 5. Nxc6 {[%clk 01:32:42]} {[%emt 00:00:07]}
bxc6 {[%clk 01:32:26]} {[%emt 00:00:05]} 6. Bd3 {[%clk 01:32:18]} {[%emt
00:00:55]} d6 {[%clk 01:31:23]} {[%emt 00:01:32]} 7. O-O {[%clk 01:30:01]}
{[%emt 00:02:47]} Be7 {[%clk 01:30:52]} {[%emt 00:01:02]} 8. Nc3 {[%clk
01:27:24]} {[%emt 00:03:07]} O-O {[%clk 01:30:09]} {[%emt 00:01:12]} 9. Bf4
{[%clk 01:20:34]} {[%emt 00:07:21]} Nd7 {[%clk 01:26:59]} {[%emt 00:03:40]} 10.
Re1 {[%clk 01:15:15]} {[%emt 00:05:49]} Bf6 {[%clk 01:24:36]} {[%emt 00:02:52]}
11. Qd2 {[%clk 01:12:56]} {[%emt 00:02:50]} Ne5 {[%clk 01:23:17]} {[%emt
00:01:49]} 12. Rad1 {[%clk 01:07:49]} {[%emt 00:05:37]} Re8 {[%clk 01:17:55]}
{[%emt 00:05:52]} 13. h3 {[%clk 00:55:07]} {[%emt 00:13:12]} Rb8 {[%clk
01:11:42]} {[%emt 00:06:43]} 14. Bxe5 {[%clk 00:49:03]} {[%emt 00:06:34]} Bxe5
{[%clk 01:11:21]} {[%emt 00:00:51]} 15. b3 {[%clk 00:47:56]} {[%emt 00:01:38]}
h6 {[%clk 00:52:07]} {[%emt 00:19:43]} 16. Ne2 {[%clk 00:37:04]} {[%emt
00:11:21]} Bf6 {[%clk 00:48:05]} {[%emt 00:04:32]} 17. Ng3 {[%clk 00:31:46]}
{[%emt 00:05:48]} Bh4 {[%clk 00:43:09]} {[%emt 00:05:27]} 18. Qf4 {[%clk
00:27:29]} {[%emt 00:04:47]} Qg5 {[%clk 00:39:43]} {[%emt 00:03:56]} 19. Qxg5
{[%clk 00:27:21]} {[%emt 00:00:37]} Bxg5 {[%clk 00:39:53]} {[%emt 00:00:21]} 20.
a4 {[%clk 00:24:24]} {[%emt 00:03:27]} 1/2-1/2

[Event "NJSK 2022 Jeugd C"]
[Site "Almelo, Netherlands"]
[Date "2022.05.03"]
[Round "4.7"]
[White "Zecha, Oscar"]
[Black "Kurt, Sascha"]
[Result "1/2-1/2"]
[TimeControl "90min + 30sec/move"]
[WhiteElo "1826"]
[BlackElo "1834"]

1. d4 {[%clk 01:30:58]} {[%emt 00:00:02]} Nf6 {[%clk 01:30:54]} {[%emt
00:00:06]} 2. c4 {[%clk 01:31:26]} g6 {[%clk 01:31:18]} {[%emt 00:00:06]} 3. g3
{[%clk 01:31:54]} {[%emt 00:00:03]} Bg7 {[%clk 01:31:43]} {[%emt 00:00:05]} 4.
Bg2 {[%clk 01:32:20]} {[%emt 00:00:04]} d6 {[%clk 01:32:08]} {[%emt 00:00:05]}
5. Nf3 {[%clk 01:32:09]} {[%emt 00:00:41]} O-O {[%clk 01:32:26]} {[%emt
00:00:12]} 6. Nc3 {[%clk 01:32:37]} {[%emt 00:00:02]} Nc6 {[%clk 01:32:43]}
{[%emt 00:00:13]} 7. d5 {[%clk 01:33:03]} {[%emt 00:00:04]} Na5 {[%clk
01:33:08]} {[%emt 00:00:05]} 8. b3 {[%clk 01:33:29]} {[%emt 00:00:05]} c5
{[%clk 01:33:32]} {[%emt 00:00:06]} 9. Bb2 {[%clk 01:33:54]} {[%emt 00:00:05]}
a6 {[%clk 01:33:10]} {[%emt 00:00:51]} 10. O-O {[%clk 01:34:08]} {[%emt
00:00:16]} Rb8 {[%clk 01:33:31]} {[%emt 00:00:09]} 11. a4 {[%clk 01:34:34]}
{[%emt 00:00:05]} Qb6 {[%clk 01:32:34]} {[%emt 00:01:26]} 12. Nd2 {[%clk
01:30:29]} {[%emt 00:04:35]} Bh6 {[%clk 01:26:56]} {[%emt 00:06:07]} 13. Ra3
{[%clk 01:26:13]} {[%emt 00:04:47]} Bg7 {[%clk 01:13:40]} {[%emt 00:13:47]} 14.
Qa1 {[%clk 01:18:48]} {[%emt 00:07:54]} Nd7 {[%clk 01:07:27]} {[%emt 00:06:42]}
15. Kh1 {[%clk 01:01:05]} {[%emt 00:18:13]} e5 {[%clk 01:01:14]} {[%emt
00:06:44]} 16. dxe6 {[%clk 00:49:53]} {[%emt 00:11:42]} fxe6 {[%clk 00:58:08]}
{[%emt 00:03:35]} 17. Bh3 {[%clk 00:43:18]} {[%emt 00:07:06]} Nf6 {[%clk
00:53:19]} {[%emt 00:05:19]} 18. Kg1 {[%clk 00:36:22]} {[%emt 00:07:26]} Qc7
{[%emt 00:11:21]} 1/2-1/2

[Event "NJSK 2022 Jeugd C"]
[Site "Almelo, Netherlands"]
[Date "2022.05.03"]
[Round "4.8"]
[White "Mohebbinezhad, Parsa"]
[Black "Terlouw, Wouter"]
[Result "1-0"]
[TimeControl "90min + 30sec/move"]
[WhiteElo "1600"]
[BlackElo "1578"]

1. e4 {[%clk 01:30:58]} {[%emt 00:00:01]} c5 {[%clk 01:30:51]} {[%emt
00:00:09]} 2. Nf3 {[%clk 01:31:17]} {[%emt 00:00:11]} Nc6 {[%clk 01:31:15]}
{[%emt 00:00:06]} 3. d4 {[%clk 01:31:39]} {[%emt 00:00:07]} cxd4 {[%clk
01:31:42]} {[%emt 00:00:04]} 4. Nxd4 {[%clk 01:32:04]} {[%emt 00:00:05]} g6
{[%clk 01:32:09]} {[%emt 00:00:04]} 5. Nc3 {[%clk 01:32:15]} {[%emt 00:00:19]}
Bg7 {[%clk 01:32:33]} {[%emt 00:00:06]} 6. Be3 {[%clk 01:32:32]} {[%emt
00:00:12]} Nf6 {[%clk 01:32:55]} {[%emt 00:00:08]} 7. Bc4 {[%clk 01:32:22]}
{[%emt 00:00:40]} O-O {[%clk 01:33:02]} {[%emt 00:00:23]} 8. Qd2 {[%clk
01:32:42]} {[%emt 00:00:09]} d6 {[%clk 01:32:41]} {[%emt 00:00:52]} 9. f3
{[%clk 01:32:35]} {[%emt 00:00:37]} Bd7 {[%clk 01:32:59]} {[%emt 00:00:12]} 10.
O-O-O {[%clk 01:32:52]} {[%emt 00:00:13]} Ne5 {[%clk 01:33:22]} {[%emt
00:00:07]} 11. Bb3 {[%clk 01:33:06]} {[%emt 00:00:16]} Rc8 {[%clk 01:33:25]}
{[%emt 00:00:27]} 12. g4 {[%clk 01:32:09]} {[%emt 00:01:26]} b5 {[%clk
01:31:58]} {[%emt 00:01:58]} 13. h4 {[%clk 01:30:52]} {[%emt 00:01:47]} h5
{[%clk 01:30:44]} {[%emt 00:01:44]} 14. gxh5 {[%clk 01:28:34]} {[%emt
00:02:47]} Nxh5 {[%clk 01:30:59]} {[%emt 00:00:15]} 15. Rdg1 {[%clk 01:26:26]}
{[%emt 00:02:39]} a5 {[%clk 01:28:37]} {[%emt 00:02:52]} 16. f4 {[%clk
01:25:50]} {[%emt 00:01:06]} b4 {[%clk 01:27:10]} {[%emt 00:01:58]} 17. Na4
{[%clk 01:22:51]} {[%emt 00:03:28]} Nc4 {[%clk 01:20:51]} {[%emt 00:06:49]} 18.
Bxc4 {[%clk 01:22:16]} {[%emt 00:01:03]} Rxc4 {[%clk 01:18:50]} {[%emt
00:02:32]} 19. b3 {[%clk 01:22:15]} {[%emt 00:00:32]} Rc8 {[%clk 01:18:22]}
{[%emt 00:00:59]} 20. Nb2 {[%clk 01:20:31]} {[%emt 00:02:13]} e5 {[%clk
01:16:54]} {[%emt 00:01:58]} 21. Ne2 {[%clk 01:19:59]} {[%emt 00:01:01]} exf4
{[%clk 01:15:10]} {[%emt 00:02:15]} 22. Bd4 {[%clk 01:19:10]} {[%emt 00:01:20]}
Qc7 {[%clk 01:09:45]} {[%emt 00:05:53]} 23. Bxg7 {[%clk 01:19:07]} {[%emt
00:00:33]} Kxg7 {[%clk 01:09:44]} {[%emt 00:00:32]} 24. Rh2 {[%clk 01:14:19]}
{[%emt 00:05:18]} Qc5 {[%clk 01:07:55]} {[%emt 00:02:15]} 25. Nd3 {[%clk
01:13:16]} {[%emt 00:01:37]} Qe3 {[%clk 01:04:18]} {[%emt 00:04:07]} 26. Ndxf4
{[%clk 01:12:16]} {[%emt 00:01:29]} Qxd2+ {[%clk 01:04:10]} {[%emt 00:00:39]}
27. Kxd2 {[%clk 01:12:44]} {[%emt 00:00:02]} Nxf4 {[%clk 01:04:22]} {[%emt
00:00:18]} 28. Nxf4 {[%clk 01:13:07]} {[%emt 00:00:07]} Rfe8 {[%clk 01:03:20]}
{[%emt 00:01:31]} 29. Nh5+ {[%clk 01:12:04]} {[%emt 00:01:33]} Kh6 {[%clk
00:58:01]} {[%emt 00:05:49]} 30. Nf6 {[%clk 01:10:10]} {[%emt 00:02:25]} Re7
{[%clk 00:57:25]} {[%emt 00:01:06]} 31. h5 {[%clk 01:09:17]} {[%emt 00:01:23]}
Kg7 {[%clk 00:56:29]} {[%emt 00:01:26]} 32. Nxd7 {[%clk 00:39:47]} {[%emt
00:29:59]} Rxd7 {[%clk 00:56:20]} {[%emt 00:00:40]} 33. hxg6 {[%clk 00:38:22]}
{[%emt 00:01:55]} fxg6 {[%clk 00:55:08]} {[%emt 00:01:42]} 34. Rhg2 {[%clk
00:35:52]} {[%emt 00:03:00]} d5 {[%clk 00:50:44]} {[%emt 00:04:54]} 35. Rxg6+
{[%clk 00:35:39]} {[%emt 00:00:42]} Kh7 {[%clk 00:50:31]} {[%emt 00:00:44]} 36.
R6g5 {[%clk 00:28:25]} {[%emt 00:07:44]} dxe4+ {[%clk 00:49:36]} {[%emt
00:01:24]} 37. Kc1 {[%clk 00:28:34]} {[%emt 00:00:21]} Kh6 {[%clk 00:48:07]}
{[%emt 00:02:00]} 38. Rg6+ {[%clk 00:23:27]} {[%emt 00:05:37]} Kh7 {[%clk
00:47:57]} {[%emt 00:00:40]} 39. R6g4 {[%clk 00:23:22]} {[%emt 00:00:35]} Rd6
{[%clk 00:47:26]} {[%emt 00:01:02]} 40. Rxe4 {[%clk 00:23:30]} {[%emt
00:00:21]} Rc5 {[%clk 00:47:01]} {[%emt 00:00:55]} 41. Kb2 {[%clk 00:22:01]}
{[%emt 00:01:59]} Rg6 {[%clk 00:44:56]} {[%emt 00:02:35]} 42. Reg4 {[%clk
00:20:09]} {[%emt 00:02:22]} Rxg4 {[%clk 00:42:36]} {[%emt 00:02:50]} 43. Rxg4
{[%clk 00:20:36]} {[%emt 00:00:02]} Kh6 {[%clk 00:42:24]} {[%emt 00:00:42]} 44.
Rg3 {[%clk 00:20:22]} {[%emt 00:00:44]} Rf5 {[%clk 00:39:56]} {[%emt 00:02:58]}
45. a3 {[%clk 00:20:09]} {[%emt 00:00:43]} Kh5 {[%clk 00:38:07]} {[%emt
00:02:19]} 46. axb4 {[%clk 00:18:51]} {[%emt 00:01:49]} axb4 {[%clk 00:38:24]}
{[%emt 00:00:13]} 47. Rg2 {[%clk 00:19:04]} {[%emt 00:00:17]} Rf3 {[%clk
00:37:57]} {[%emt 00:00:57]} 48. Rg8 {[%clk 00:15:07]} {[%emt 00:04:27]} Kh4
{[%clk 00:36:45]} {[%emt 00:01:42]} 49. Rb8 {[%clk 00:14:48]} {[%emt 00:00:49]}
Rf4 {[%clk 00:37:04]} {[%emt 00:00:11]} 50. Rc8 {[%clk 00:14:13]} {[%emt
00:01:05]} Kg5 {[%clk 00:33:20]} {[%emt 00:04:13]} 51. Rc4 {[%clk 00:14:28]}
{[%emt 00:00:15]} Kf5 {[%clk 00:33:13]} {[%emt 00:00:37]} 52. Rxf4+ {[%clk
00:14:04]} {[%emt 00:00:54]} Kxf4 {[%clk 00:33:33]} {[%emt 00:00:10]} 53. c3
{[%clk 00:14:27]} {[%emt 00:00:08]} Ke5 {[%clk 00:33:41]} {[%emt 00:00:22]} 54.
cxb4 {[%clk 00:14:47]} {[%emt 00:00:10]} Kd5 {[%clk 00:34:02]} {[%emt
00:00:09]} 55. Kc3 {[%clk 00:14:47]} {[%emt 00:00:29]} Kc6 {[%clk 00:34:19]}
{[%emt 00:00:14]} 56. Kc4 {[%clk 00:14:45]} {[%emt 00:00:32]} Kb6 {[%clk
00:34:42]} {[%emt 00:00:07]} 57. b5 {[%clk 00:15:09]} {[%emt 00:00:06]} Kb7
{[%clk 00:34:55]} {[%emt 00:00:17]} 58. Kc5 {[%clk 00:15:23]} {[%emt 00:00:16]}
Kc7 {[%clk 00:35:11]} {[%emt 00:00:15]} 59. b6+ {[%clk 00:15:30]} {[%emt
00:00:23]} Kb7 {[%clk 00:35:15]} {[%emt 00:00:25]} 60. Kb5 {[%clk 00:15:54]}
{[%emt 00:00:05]} Kb8 {[%clk 00:35:39]} {[%emt 00:00:07]} 61. Kc6 {[%clk
00:16:10]} {[%emt 00:00:14]} Ka8 {[%clk 00:35:40]} {[%emt 00:00:29]} 62. b7+
{[%clk 00:16:31]} {[%emt 00:00:08]} Kb8 {[%clk 00:36:03]} {[%emt 00:00:08]} 63.
b4 {[%clk 00:16:51]} {[%emt 00:00:10]} Ka7 {[%clk 00:36:21]} {[%emt 00:00:12]}
64. Kc7 {[%clk 00:17:04]} {[%emt 00:00:17]} Ka6 {[%clk 00:36:46]} {[%emt
00:00:05]} 65. b5+ {[%clk 00:17:15]} {[%emt 00:00:19]} 1-0

[Event "NJSK 2022 Jeugd C"]
[Site "Almelo, Netherlands"]
[Date "2022.05.03"]
[Round "4.9"]
[White "Krylov, Philippe"]
[Black "Agarwal, Pranav"]
[Result "0-1"]
[TimeControl "90min + 30sec/move"]
[WhiteElo "1817"]
[BlackElo "1531"]

1. d4 {[%clk 01:30:58]} {[%emt 00:00:01]} c5 {[%clk 01:30:53]} {[%emt
00:00:08]} 2. d5 {[%clk 01:31:25]} {[%emt 00:00:02]} e6 {[%clk 01:31:18]}
{[%emt 00:00:05]} 3. c4 {[%clk 01:31:47]} {[%emt 00:00:09]} exd5 {[%clk
01:31:41]} {[%emt 00:00:07]} 4. cxd5 {[%clk 01:32:13]} {[%emt 00:00:04]} Nf6
{[%clk 01:31:52]} {[%emt 00:00:19]} 5. Nc3 {[%clk 01:32:37]} {[%emt 00:00:06]}
d6 {[%clk 01:32:18]} {[%emt 00:00:04]} 6. Nf3 {[%clk 01:32:00]} {[%emt
00:01:07]} Bf5 {[%clk 01:31:24]} {[%emt 00:01:24]} 7. Nd2 {[%clk 01:31:18]}
{[%emt 00:01:12]} Be7 {[%clk 01:29:02]} {[%emt 00:02:52]} 8. e4 {[%clk
01:30:32]} {[%emt 00:01:15]} Bg6 {[%clk 01:29:01]} {[%emt 00:00:31]} 9. f3
{[%clk 01:30:49]} {[%emt 00:00:14]} Nh5 {[%clk 01:26:14]} {[%emt 00:03:16]} 10.
Bb5+ {[%clk 01:31:11]} {[%emt 00:00:08]} Nd7 {[%emt 00:02:11]} 11. O-O {[%clk
01:29:56]} {[%emt 00:00:01]} f5 {[%clk 01:24:27]} {[%emt 00:02:19]} 12. exf5
{[%clk 01:12:51]} {[%emt 00:17:36]} Bf7 {[%clk 01:22:22]} {[%emt 00:02:34]} 13.
Qa4 {[%clk 01:08:51]} {[%emt 00:04:31]} Nhf6 {[%clk 01:20:43]} {[%emt
00:02:08]} 14. Bxd7+ {[%clk 01:07:57]} {[%emt 00:01:25]} Qxd7 {[%clk 01:20:31]}
{[%emt 00:00:41]} 15. Qxd7+ {[%clk 01:03:30]} {[%emt 00:04:57]} Kxd7 {[%clk
01:20:47]} {[%emt 00:00:14]} 16. Nde4 {[%clk 01:00:56]} {[%emt 00:03:05]} Nxd5
{[%clk 01:19:32]} {[%emt 00:01:45]} 17. Nxd5 {[%clk 01:00:41]} {[%emt
00:00:45]} Bxd5 {[%clk 01:19:53]} {[%emt 00:00:08]} 18. Rd1 {[%clk 01:01:05]}
{[%emt 00:00:06]} Kc6 {[%clk 01:19:30]} {[%emt 00:00:53]} 19. Nc3 {[%clk
01:00:21]} {[%emt 00:01:15]} Bf7 {[%clk 01:18:37]} {[%emt 00:01:22]} 20. Bf4
{[%clk 00:59:29]} {[%emt 00:01:22]} Rhd8 {[%clk 01:14:13]} {[%emt 00:04:54]} 21.
Ne4 {[%clk 00:56:01]} {[%emt 00:03:58]} h6 {[%clk 01:13:58]} {[%emt 00:00:46]}
22. f6 {[%clk 00:53:09]} {[%emt 00:03:22]} gxf6 {[%clk 01:14:18]} {[%emt
00:00:10]} 23. Bxh6 {[%clk 00:52:40]} {[%emt 00:00:58]} d5 {[%clk 01:14:26]}
{[%emt 00:00:22]} 24. Ng3 {[%clk 00:52:28]} {[%emt 00:00:43]} Bg6 {[%clk
01:10:43]} {[%emt 00:04:12]} 25. Re1 {[%clk 00:51:31]} {[%emt 00:01:28]} Re8
{[%clk 01:10:33]} {[%emt 00:00:40]} 26. Re6+ {[%clk 00:51:01]} {[%emt
00:00:59]} Kd7 {[%clk 01:09:52]} {[%emt 00:01:11]} 27. Rae1 {[%clk 00:50:42]}
{[%emt 00:00:50]} c4 {[%clk 01:08:46]} {[%emt 00:01:36]} 28. Kh1 {[%clk
00:45:00]} {[%emt 00:06:12]} Bb4 {[%clk 01:08:08]} {[%emt 00:01:07]} 29. Rxe8
{[%clk 00:44:53]} {[%emt 00:00:37]} Rxe8 {[%clk 01:08:31]} {[%emt 00:00:07]} 30.
Rxe8 {[%clk 00:45:12]} {[%emt 00:00:12]} Kxe8 {[%clk 01:08:57]} {[%emt
00:00:03]} 31. Be3 {[%clk 00:45:33]} {[%emt 00:00:10]} b6 {[%clk 01:05:40]}
{[%emt 00:03:47]} 32. Bd4 {[%clk 00:45:11]} {[%emt 00:00:52]} Ke7 {[%clk
01:05:24]} {[%emt 00:00:45]} 33. Bc3 {[%clk 00:33:16]} {[%emt 00:12:25]} Bxc3
{[%clk 00:54:27]} {[%emt 00:11:27]} 34. bxc3 {[%clk 00:33:45]} {[%emt
00:00:02]} Bd3 {[%clk 00:54:46]} {[%emt 00:00:11]} 35. Kg1 {[%clk 00:33:40]}
{[%emt 00:00:35]} Kd6 {[%clk 00:55:07]} {[%emt 00:00:09]} 36. Kf2 {[%clk
00:33:35]} {[%emt 00:00:35]} Kc5 {[%clk 00:55:25]} {[%emt 00:00:12]} 37. Ke3
{[%clk 00:32:24]} {[%emt 00:01:41]} b5 {[%clk 00:55:30]} {[%emt 00:00:25]} 38.
a3 {[%clk 00:31:25]} {[%emt 00:01:29]} a5 {[%clk 00:55:56]} {[%emt 00:00:04]}
39. f4 {[%clk 00:30:25]} {[%emt 00:01:30]} d4+ {[%clk 00:53:26]} {[%emt
00:02:59]} 40. cxd4+ {[%clk 00:29:30]} {[%emt 00:01:26]} Kd5 {[%clk 00:53:49]}
{[%emt 00:00:07]} 41. Nh5 {[%clk 00:29:51]} {[%emt 00:00:08]} b4 {[%clk
00:38:09]} {[%emt 00:16:10]} 42. Nxf6+ {[%clk 00:29:13]} {[%emt 00:01:08]} Ke6
{[%clk 00:37:14]} {[%emt 00:01:26]} 43. axb4 {[%clk 00:29:28]} {[%emt
00:00:16]} a4 {[%clk 00:31:56]} {[%emt 00:05:48]} 44. Ne8 {[%clk 00:28:14]}
{[%emt 00:01:43]} a3 {[%clk 00:31:01]} {[%emt 00:01:25]} 45. Nc7+ {[%clk
00:28:33]} {[%emt 00:00:11]} Kd7 {[%clk 00:31:04]} {[%emt 00:00:27]} 46. Na6
{[%clk 00:27:26]} {[%emt 00:01:38]} a2 {[%clk 00:30:36]} {[%emt 00:00:58]} 47.
Nc5+ {[%clk 00:27:52]} {[%emt 00:00:04]} Kc6 {[%clk 00:30:38]} {[%emt
00:00:28]} 48. Nxd3 {[%clk 00:28:15]} {[%emt 00:00:07]} cxd3 {[%clk 00:30:46]}
{[%emt 00:00:21]} 49. Kxd3 {[%clk 00:28:43]} {[%emt 00:00:03]} a1=Q {[%clk
00:30:57]} {[%emt 00:00:19]} 50. g4 {[%clk 00:29:04]} {[%emt 00:00:09]} Qd1+
{[%clk 00:31:09]} {[%emt 00:00:18]} 51. Ke4 {[%clk 00:29:27]} {[%emt 00:00:06]}
Qxg4 {[%clk 00:31:13]} {[%emt 00:00:26]} 52. Ke5 {[%clk 00:29:54]} {[%emt
00:00:04]} Qe2+ {[%clk 00:31:23]} {[%emt 00:00:19]} 53. Kf6 {[%clk 00:30:10]}
{[%emt 00:00:15]} Qxh2 {[%clk 00:31:11]} {[%emt 00:00:41]} 54. f5 {[%clk
00:30:34]} {[%emt 00:00:07]} Qd6 {[%clk 00:31:23]} {[%emt 00:00:18]} 55. Kf7
{[%clk 00:30:45]} {[%emt 00:00:19]} Qd5+ {[%clk 00:31:14]} {[%emt 00:00:38]} 56.
Kg6 {[%clk 00:30:18]} {[%emt 00:00:58]} Kd7 {[%clk 00:31:05]} {[%emt 00:00:38]}
57. f6 {[%clk 00:30:15]} {[%emt 00:00:33]} Ke6 {[%clk 00:29:49]} {[%emt
00:01:46]} 0-1

[Event "NJSK 2022 Jeugd C"]
[Site "Almelo, Netherlands"]
[Date "2022.05.03"]
[Round "4.10"]
[White "Kumar, Prayan Sai"]
[Black "Fallaux, Storm"]
[Result "0-1"]
[TimeControl "90min + 30sec/move"]
[WhiteElo "1562"]
[BlackElo "1459"]

1. d4 {[%clk 01:30:56]} {[%emt 00:00:04]} Nf6 {[%clk 01:30:56]} {[%emt
00:00:05]} 2. Nf3 {[%clk 01:31:12]} {[%emt 00:00:15]} e6 {[%clk 01:31:17]}
{[%emt 00:00:08]} 3. Bf4 {[%clk 01:31:34]} {[%emt 00:00:08]} d5 {[%clk
01:31:40]} {[%emt 00:00:06]} 4. e3 {[%clk 01:31:48]} {[%emt 00:00:17]} c5
{[%clk 01:31:17]} {[%emt 00:00:53]} 5. c3 {[%clk 01:31:55]} {[%emt 00:00:23]}
Nc6 {[%clk 01:31:29]} {[%emt 00:00:19]} 6. Nbd2 {[%clk 01:30:52]} {[%emt
00:01:32]} c4 {[%clk 01:31:32]} {[%emt 00:00:27]} 7. Be2 {[%clk 01:28:31]}
{[%emt 00:02:51]} Be7 {[%clk 01:31:41]} {[%emt 00:00:21]} 8. O-O {[%clk
01:28:30]} {[%emt 00:00:32]} Nh5 {[%clk 01:31:48]} {[%emt 00:00:22]} 9. Bg3
{[%clk 01:27:06]} {[%emt 00:01:53]} Nxg3 {[%clk 01:31:30]} {[%emt 00:00:49]} 10.
hxg3 {[%clk 01:27:21]} {[%emt 00:00:14]} g5 {[%clk 01:31:23]} {[%emt 00:00:38]}
11. Ne1 {[%clk 01:20:03]} {[%emt 00:07:49]} f5 {[%clk 01:27:50]} {[%emt
00:04:02]} 12. b3 {[%emt 00:01:00]} b5 {[%clk 01:27:59]} {[%emt 00:00:20]} 13.
a4 {[%clk 01:19:47]} {[%emt 00:00:17]} bxa4 {[%clk 01:27:36]} {[%emt 00:00:53]}
14. bxa4 {[%clk 01:11:25]} {[%emt 00:08:52]} Rb8 {[%clk 01:27:33]} {[%emt
00:00:33]} 15. Bh5+ {[%clk 01:11:42]} {[%emt 00:00:13]} Kd7 {[%clk 01:27:52]}
{[%emt 00:00:11]} 16. Be2 {[%clk 01:09:02]} {[%emt 00:03:09]} g4 {[%clk
01:27:52]} {[%emt 00:00:30]} 17. f3 {[%clk 01:03:03]} {[%emt 00:06:29]} h5
{[%clk 01:28:14]} {[%emt 00:00:09]} 18. f4 {[%clk 00:59:12]} {[%emt 00:04:22]}
h4 {[%clk 01:28:11]} {[%emt 00:00:32]} 19. gxh4 {[%clk 00:58:13]} {[%emt
00:01:28]} Bxh4 {[%clk 01:27:44]} {[%emt 00:00:57]} 20. Rb1 {[%clk 00:57:16]}
{[%emt 00:01:28]} Rxb1 {[%clk 01:27:37]} {[%emt 00:00:37]} 21. Qxb1 {[%clk
00:57:32]} {[%emt 00:00:14]} Bg3 {[%clk 01:27:56]} {[%emt 00:00:10]} 22. e4
{[%clk 00:56:59]} {[%emt 00:01:04]} Rh1+ {[%clk 01:28:05]} {[%emt 00:00:21]} 23.
Kxh1 {[%clk 00:57:21]} {[%emt 00:00:08]} Qh4+ {[%clk 01:28:30]} {[%emt
00:00:05]} 24. Kg1 {[%clk 00:57:45]} {[%emt 00:00:06]} Qh2# {[%clk 01:28:55]}
{[%emt 00:00:05]} 0-1

[Event "NJSK 2022 Jeugd C"]
[Site "Almelo, Netherlands"]
[Date "2022.05.03"]
[Round "4.11"]
[White "Folkers, Sono"]
[Black "Franco, Hugo"]
[Result "1-0"]
[TimeControl "90min + 30sec/move"]
[WhiteElo "1519"]
[BlackElo "1441"]

1. d4 {[%clk 01:30:57]} {[%emt 00:00:03]} d5 {[%clk 01:30:32]} {[%emt
00:00:29]} 2. Bf4 {[%clk 01:31:22]} {[%emt 00:00:04]} Nc6 {[%clk 01:30:34]}
{[%emt 00:00:29]} 3. Nf3 {[%clk 01:31:40]} {[%emt 00:00:13]} Nf6 {[%clk
01:30:32]} {[%emt 00:00:32]} 4. e3 {[%clk 01:32:00]} {[%emt 00:00:09]} Bg4
{[%clk 01:30:09]} {[%emt 00:00:52]} 5. h3 {[%clk 01:32:16]} {[%emt 00:00:15]}
Bh5 {[%clk 01:30:33]} {[%emt 00:00:06]} 6. Nbd2 {[%clk 01:32:20]} {[%emt
00:00:26]} e6 {[%clk 01:30:41]} {[%emt 00:00:23]} 7. a3 {[%clk 01:31:56]}
{[%emt 00:00:54]} Bd6 {[%clk 01:30:36]} {[%emt 00:00:34]} 8. Bg5 {[%clk
01:30:54]} {[%emt 00:01:32]} e5 {[%clk 01:27:04]} {[%emt 00:04:02]} 9. Be2
{[%clk 01:30:07]} {[%emt 00:01:16]} Qe7 {[%clk 01:21:25]} {[%emt 00:06:09]} 10.
c3 {[%clk 01:28:14]} {[%emt 00:02:23]} e4 {[%clk 01:17:20]} {[%emt 00:04:35]}
11. Nh4 {[%clk 01:25:35]} {[%emt 00:03:09]} Bxe2 {[%clk 01:15:48]} {[%emt
00:02:02]} 12. Qxe2 {[%clk 01:25:52]} {[%emt 00:00:13]} Qd7 {[%clk 01:09:41]}
{[%emt 00:06:35]} 13. g4 {[%clk 01:23:20]} {[%emt 00:03:04]} h6 {[%clk
01:09:26]} {[%emt 00:00:46]} 14. Bxf6 {[%clk 01:23:13]} {[%emt 00:00:37]} gxf6
{[%clk 01:09:39]} {[%emt 00:00:16]} 15. Nf5 {[%clk 01:23:36]} {[%emt 00:00:08]}
O-O-O {[%clk 01:08:57]} {[%emt 00:01:12]} 16. a4 {[%clk 01:23:21]} {[%emt
00:00:45]} h5 {[%clk 01:08:45]} {[%emt 00:00:42]} 17. f3 {[%clk 01:21:07]}
{[%emt 00:02:43]} exf3 {[%clk 01:03:14]} {[%emt 00:06:01]} 18. Qxf3 {[%clk
01:18:56]} {[%emt 00:02:40]} Rdg8 {[%clk 01:03:05]} {[%emt 00:00:40]} 19. O-O-O
{[%clk 01:17:52]} {[%emt 00:01:33]} Ne7 {[%clk 00:51:51]} {[%emt 00:11:46]} 20.
Nxd6+ {[%clk 01:16:57]} {[%emt 00:01:25]} Qxd6 {[%clk 00:51:58]} {[%emt
00:00:22]} 21. e4 {[%clk 01:16:39]} {[%emt 00:00:49]} hxg4 {[%clk 00:46:49]}
{[%emt 00:05:38]} 22. hxg4 {[%clk 01:16:38]} {[%emt 00:00:31]} dxe4 {[%clk
00:43:16]} {[%emt 00:04:03]} 23. Nxe4 {[%clk 01:16:48]} {[%emt 00:00:20]} Qc6
{[%clk 00:41:32]} {[%emt 00:02:15]} 24. Rxh8 {[%clk 01:15:03]} {[%emt
00:02:14]} Rxh8 {[%clk 00:41:41]} {[%emt 00:00:20]} 25. Qxf6 {[%clk 01:14:32]}
{[%emt 00:01:02]} Qe8 {[%clk 00:40:40]} {[%emt 00:01:30]} 26. d5 {[%clk
01:10:11]} {[%emt 00:04:53]} Rh2 {[%clk 00:36:20]} {[%emt 00:04:50]} 27. d6
{[%clk 01:09:14]} {[%emt 00:01:27]} Qxa4 {[%clk 00:33:36]} {[%emt 00:03:14]} 28.
d7+ {[%clk 01:09:03]} {[%emt 00:00:41]} Kd8 {[%clk 00:33:43]} {[%emt 00:00:22]}
29. Qxe7+ {[%clk 01:08:41]} {[%emt 00:00:52]} Kxe7 {[%clk 00:33:42]} {[%emt
00:00:32]} 30. d8=Q+ {[%clk 01:09:02]} {[%emt 00:00:10]} Ke6 {[%clk 00:33:11]}
{[%emt 00:01:00]} 31. Nc5+ {[%clk 01:09:24]} {[%emt 00:00:08]} 1-0